fUSD/lending_fUSD_20241230
["ID","MTS","AMOUNT","RATE_DAILY","PERIOD"]
[347219444,1735587032241,-4147.2335744,0.0001238,2]
[347219446,1735587032250,-500.42,0.0001238,2]
[347219448,1735587032259,-4464.5841,0.000124,2]
[347219450,1735587032269,-50311.173,0.000124,2]
[347219452,1735587032278,-1283.817,0.000124,2]
[347219454,1735587032287,-2500.0,0.000124,2]
[347219456,1735587032296,-334.28172654,0.000124,2]
[347219457,1735587032305,-437.44,0.000124,2]
[347219458,1735587032314,-437.44,0.000124,2]
[347219459,1735587032324,-1542.64,0.000124,2]
[347219460,1735587032333,-1718.57,0.000124,2]
[347219461,1735587032343,-78849.64829249,0.000124,2]
[347219462,1735587032352,-111809.16001496,0.000124,2]
[347219463,1735587032361,-500.0,0.000124,2]
[347219464,1735587032374,-2000.0,0.000124,2]
[347219465,1735587032383,-500.0,0.000124,2]
[347219466,1735587032393,-200.0,0.000124,2]
[347219467,1735587032403,-4452.8852489,0.000124,2]
[347219468,1735587032413,-150.0,0.00012466,2]
[347219469,1735587032422,-2402.991,0.00012489,2]
[347219470,1735587032432,-171.608,0.00012489,2]
[347219471,1735587032441,-590.68702372,0.00012499,2]
[347219472,1735587032451,-28908.14,0.00012499,2]
[347219473,1735587032460,-970.33,0.00012499,2]
[347219474,1735587032470,-495.81,0.000125,2]
[347219475,1735587032479,-49682.62461992,0.000125,2]
[347219517,1735587032878,-915.47591036,0.000125,2]
[347219563,1735587037689,-500.0,0.00012473,2]
[347219566,1735587037699,-6233.11564634,0.000125,2]
[347219567,1735587037936,-19281.57445,0.000125,2]
[347219568,1735587037947,-15646.9189667,0.000125,2]
[347219775,1735587040340,-313.25344908,0.000125,2]
[347220037,1735587043327,-1042.26316516,0.0001225,2]
[347220039,1735587043337,-3296.32878484,0.000125,2]
[347220041,1735587043348,-2099.91934,0.000125,2]
[347220281,1735587229820,400.0,0.00011443,2]
[347220282,1735587293863,250.0,0.00011443,2]
[347220283,1735587354386,1259.7,9.525e-05,2]
[347220284,1735587408860,3023.91128333,0.0001144,2]
[347220285,1735587408883,10000.0,0.0001144,2]
[347220286,1735587408905,5829.73871667,0.0001144,2]
[347220293,1735587468977,291.84,0.00011434,2]
[347220294,1735587494645,1276.34,0.00011434,2]
[347220295,1735587686017,163.46,0.00011433,2]
[347220296,1735587801147,155.03,0.00010137,2]
[347220297,1735587818650,250.0,0.00011414,2]
[347220299,1735587902589,150.0,0.00011244,2]
[347220300,1735587910901,250.0,0.00011391,2]
[347220301,1735587915950,1000.0,0.00011391,2]
[347220302,1735587948332,200.11096328,0.00011334,2]
[347220303,1735588050138,-1241.25153556,0.00011789,2]
[347220304,1735588134206,400.0,0.00011403,2]
[347220309,1735588232113,-18.44846444,0.00011789,2]
[347220310,1735588232123,-666.681,0.0001188,2]
[347220311,1735588232132,-337.46649264,0.00012037,2]
[347220312,1735588232142,-500.0,0.00012137,2]
[347220313,1735588232151,-208.69374742,0.0001215,2]
[347220314,1735588232162,-150.0,0.00012247,2]
[347220315,1735588232171,-1144.5956268,0.0001225,2]
[347220316,1735588232180,-1050.41884567,0.0001225,2]
[347220317,1735588232190,-4207.0,0.00012251,2]
[347220318,1735588232199,-150.0,0.00012251,2]
[347220319,1735588232209,-150.0,0.00012273,2]
[347220320,1735588232218,-492.33,0.00012281,2]
[347220321,1735588232227,-150.0,0.00012286,2]
[347220322,1735588232236,-150.0,0.00012305,2]
[347220323,1735588232246,-150.0,0.00012321,2]
[347220324,1735588232256,-150.0,0.00012323,2]
[347220325,1735588232265,-502.0,0.00012329,2]
[347220326,1735588232274,-150.0,0.00012336,2]
[347220327,1735588232284,-150.0,0.00012339,2]
[347220328,1735588232293,-19168.613496,0.0001237,2]
[347220329,1735588232302,-150.0,0.00012384,2]
[347220330,1735588232312,-1000.0,0.00012398,2]
[347220331,1735588232321,-9683.28866844,0.00012399,2]
[347220332,1735588232331,-9683.2886684,0.00012399,2]
[347220333,1735588232340,-9683.2886684,0.00012399,2]
[347220334,1735588232351,-9683.2886684,0.00012399,2]
[347220335,1735588232361,-9683.2886684,0.00012399,2]
[347220336,1735588232370,-9683.2886684,0.00012399,2]
[347220337,1735588232379,-500.0,0.00012399,2]
[347220338,1735588232389,-9683.2886684,0.00012399,2]
[347220339,1735588232399,-9683.2886684,0.00012399,2]
[347220340,1735588232408,-9683.2886684,0.000124,2]
[347220341,1735588232418,-14324.8723,0.000124,2]
[347220342,1735588232427,-793.6056,0.000124,2]
[347220343,1735588232436,-399.5724,0.000124,2]
[347220344,1735588232446,-500.0,0.000124,2]
[347220345,1735588232455,-5000.0,0.000124,2]
[347220346,1735588232464,-332.54348238,0.000124,2]
[347220347,1735588232474,-150.0,0.000124,2]
[347220348,1735588232484,-500.0,0.000124,2]
[347220349,1735588232494,-2000.0,0.000124,2]
[347220350,1735588232504,-500.0,0.000124,2]
[347220352,1735588232514,-200.0,0.000124,2]
[347220354,1735588232523,-9683.2886684,0.000124,2]
[347220356,1735588232532,-24636.69118221,0.000124,2]
[347220358,1735588232542,-188.75537636,0.000124,2]
[347220359,1735588232551,-340.23262018,0.000124,2]
[347220360,1735588232561,-978.41,0.000124,2]
[347220361,1735588232571,-150.0,0.00012422,2]
[347220362,1735588232580,-2797.896,0.00012423,2]
[347220363,1735588232590,-171.751,0.00012423,2]
[347220364,1735588232603,-150.0,0.00012454,2]
[347220365,1735588232612,-150.0,0.00012458,2]
[347220366,1735588232623,-150.0,0.00012464,2]
[347220367,1735588232633,-500.0,0.00012473,2]
[347220368,1735588232642,-150.0,0.00012473,2]
[347220369,1735588232651,-150.0,0.00012479,2]
[347220370,1735588232661,-150.0,0.00012479,2]
[347220371,1735588232670,-150.0,0.00012482,2]
[347220372,1735588232680,-109295.11264385,0.0001249,2]
[347220373,1735588232690,-150.0,0.00012497,2]
[347220374,1735588232700,-500.0,0.00012498,2]
[347220375,1735588232710,-540.64748608,0.00012499,2]
[347220376,1735588232719,-180.1454058,0.00012499,2]
[347220377,1735588232729,-1000.0,0.00012499,2]
[347220378,1735588232738,-551326.60610353,0.000125,2]
[347220379,1735588232783,-1211.0,0.000125,2]
[347220380,1735588232794,-556.9954,0.000125,2]
[347220381,1735588232829,-29526.03351192,0.000125,2]
[347220382,1735588232840,-9203.25639999,0.000125,2]
[347220383,1735588232854,-7704.2232308,0.000125,2]
[347220384,1735588232866,-14354.97155165,0.000125,2]
[347220385,1735588232926,-328.995,0.000125,2]
[347220386,1735588232937,-3025.8993496,0.000125,2]
[347220387,1735588232954,-455.07,0.000125,2]
[347220388,1735588232965,-1006.1552966,0.000125,2]
[347220391,1735588237965,-16295.88842418,0.000125,2]
[347220392,1735588237977,-806.67905752,0.000125,2]
[347220393,1735588238071,-27212.60741197,0.000125,2]
[347220394,1735588238081,-861947.42361686,0.000125,2]
[347220395,1735588238093,-2190.0,0.000125,2]
[347220396,1735588238146,-1322.5644091,0.000125,2]
[347220397,1735588238157,-3171586.3434362,0.000125,2]
[347220398,1735588238223,-48509.70000005,0.000125,2]
[347220399,1735588238234,-943.21162153,0.000125,2]
[347220400,1735588238245,-266.06591,0.000125,2]
[347220401,1735588238258,-1479.662167,0.000125,2]
[347220402,1735588238269,-2198.98756785,0.000125,2]
[347220420,1735588240032,-42994.06314166,0.000125,2]
[347220421,1735588240042,-3769815.60197738,0.000125,2]
[347220422,1735588240055,-5165.84602746,0.000125,2]
[347220423,1735588240067,-10153.0,0.000125,2]
[347220424,1735588240078,-7025.61758418,0.000125,2]
[347220425,1735588240089,-5755.96575606,0.000125,2]
[347220426,1735588240100,-464.605,0.000125,2]
[347220427,1735588240154,-3474.71627729,0.000125,2]
[347220428,1735588240166,-2215.88847,0.000125,2]
[347220429,1735588240186,-281.0,0.000125,2]
[347220467,1735588243047,-477.24801,0.000125,2]
[347220468,1735588243059,-482.15821,0.000125,2]
[347220469,1735588243070,-558.900001,0.000125,2]
[347220556,1735588246294,-85859.39383005,0.000125,2]
[347220557,1735588246484,-1997.128113,0.000125,2]
[347220558,1735588246622,-3469.75000198,0.000125,2]
[347220559,1735588643140,33.48032005,0.0001148,2]
[347220560,1735588643162,820.30817166,0.0001148,2]
[347220561,1735588748411,190.63,0.00010137,2]
[347220562,1735588762154,250.0,0.00011486,2]
[347220563,1735588804278,2608.970017,0.00011454,2]
[347220564,1735588947046,1202.14,9.58e-05,2]
[347220565,1735588980445,1000.0,0.00011474,2]
[347220567,1735589114224,200.90150162,0.00011417,2]
[347220568,1735589213142,-406.89557062,0.00011507,2]
[347220569,1735589231102,-332.23442938,0.00011507,2]
[347220570,1735589231123,-300.0,0.00011511,2]
[347220571,1735589231143,-250.0,0.00011512,2]
[347220572,1735589231163,-500.0,0.00011512,2]
[347220573,1735589231182,-500.0,0.00011512,2]
[347220574,1735589231203,-500.0,0.00011512,2]
[347220575,1735589231227,-472.28088766,0.00011512,2]
[347220576,1735589231247,-284.18,0.00011559,2]
[347220577,1735589231271,-665.07,0.0001158,2]
[347220578,1735589231291,-166.76,0.000118,2]
[347220579,1735589231312,-1202.14,0.00011844,2]
[347220580,1735589231331,-680.235,0.0001188,2]
[347220581,1735589231351,-8743.03845994,0.00012,2]
[347220582,1735589241095,-318.19493708,0.00012,2]
[347220583,1735589424422,200.0,0.00011485,2]
[347220584,1735589425722,3527.05030972,0.00011485,2]
[347220585,1735589425742,1467.18969028,0.00011485,2]
[347220593,1735589432101,-255.97559429,0.00011557,2]
[347220594,1735589432114,-28.20440571,0.00011557,2]
[347220595,1735589432123,-372.57559429,0.00011616,2]
[347220596,1735589432161,-8095.14440571,0.00011616,2]
[347220597,1735589432172,-300.0,0.00011999,2]
[347220598,1735589432181,-502.04,0.00011999,2]
[347220599,1735589432189,-508.7,0.00012,2]
[347220600,1735589432198,-496.03,0.00012,2]
[347220601,1735589432207,-508.12,0.00012,2]
[347220602,1735589432216,-450.0,0.00012,2]
[347220603,1735589432225,-122361.0,0.00012,2]
[347220604,1735589432239,-497.08,0.00012,2]
[347220605,1735589432248,-497.44,0.00012,2]
[347220606,1735589432257,-501.48,0.00012,2]
[347220607,1735589432266,-494.51,0.00012,2]
[347220608,1735589432278,-463.54,0.00012029,2]
[347220609,1735589432288,-5561.0,0.000121,3]
[347220610,1735589432297,-150.0,0.000122,2]
[347220611,1735589432306,-150.0,0.000122,2]
[347220612,1735589432317,-150.0,0.000122,2]
[347220613,1735589432327,-436.69,0.000122,2]
[347220614,1735589432337,-978.41,0.000122,2]
[347220615,1735589432346,-978.41,0.000122,2]
[347220616,1735589432356,-150.0,0.00012242,2]
[347220617,1735589432365,-5561.0,0.000123,5]
[347220618,1735589432374,-978.41,0.000123,2]
[347220619,1735589432383,-874.54,0.000123,2]
[347220620,1735589432392,-978.41,0.000123,2]
[347220621,1735589432402,-20090.0,0.00012375,2]
[347220622,1735589432411,-14592.7655937,0.0001238,2]
[347220623,1735589432419,-1267.72,0.00012395,2]
[347220624,1735589432429,-2013.0,0.00012395,2]
[347220625,1735589432438,-150.0,0.00012395,2]
[347220626,1735589432448,-634.0,0.00012395,2]
[347220627,1735589432457,-565.0,0.00012395,2]
[347220628,1735589432467,-1900.0,0.00012395,2]
[347220629,1735589432476,-819.0,0.00012395,2]
[347220630,1735589432485,-919.0,0.00012395,2]
[347220631,1735589432495,-3773.0,0.00012395,2]
[347220632,1735589432504,-1257.0,0.00012395,2]
[347220633,1735589432513,-536.0,0.00012395,2]
[347220634,1735589432523,-3719.0,0.00012395,2]
[347220635,1735589432532,-1102.0,0.00012397,2]
[347220636,1735589432541,-151.90538003,0.00012399,2]
[347220637,1735589432551,-151.90538003,0.00012399,2]
[347220638,1735589432560,-151.90538003,0.00012399,2]
[347220639,1735589432570,-151.90538003,0.00012399,2]
[347220640,1735589432581,-151.90538003,0.00012399,2]
[347220641,1735589432591,-151.90538003,0.00012399,2]
[347220642,1735589432601,-151.90538003,0.00012399,2]
[347220643,1735589432610,-151.90538003,0.00012399,2]
[347220644,1735589432619,-500.0,0.000124,2]
[347220645,1735589432629,-500.0,0.000124,2]
[347220646,1735589432639,-200.0,0.000124,2]
[347220647,1735589432649,-151.90538003,0.000124,2]
[347220648,1735589432658,-249.40761177,0.000124,2]
[347220649,1735589432668,-226.86404716,0.000124,2]
[347220650,1735589433005,-206.20860154,0.000124,2]
[347220651,1735589433030,-171.751,0.00012425,2]
[347220652,1735589433040,-2531.31,0.00012425,2]
[347220653,1735589433049,-1172.0,0.0001245,2]
[347220654,1735589433058,-181.295,0.0001245,2]
[347220655,1735589433068,-290.845,0.0001245,2]
[347220656,1735589433079,-3891.0,0.0001245,2]
[347220657,1735589433089,-9605.0,0.0001245,2]
[347220658,1735589433098,-500.0,0.00012473,2]
[347220659,1735589433107,-500.0,0.00012473,2]
[347220660,1735589433117,-266.5098,0.00012499,2]
[347220661,1735589433126,-950.73,0.00012499,2]
[347220662,1735589433136,-244130.36741726,0.000125,2]
[347220663,1735589433653,-656.77032132,0.000125,2]
[347220664,1735589433665,-4279.62851471,0.000125,2]
[347220665,1735589433695,-821.24910659,0.000125,2]
[347220666,1735589433707,-952685.77726351,0.000125,2]
[347220667,1735589433782,-616.5,0.000125,2]
[347220668,1735589433807,-3112.21826223,0.000125,2]
[347220669,1735589433818,-1900.0,0.000125,2]
[347220670,1735589433830,-1024.85967836,0.000125,2]
[347220671,1735589433844,-3401.62029999,0.000125,2]
[347220672,1735589433855,-36757.39738509,0.000125,2]
[347220673,1735589433866,-705.7996043,0.000125,2]
[347220674,1735589433877,-3334.91532517,0.000125,2]
[347220675,1735589433928,-3075.09649007,0.000125,2]
[347220676,1735589433939,-918.204,0.000125,2]
[347220677,1735589433965,-593.999997,0.000125,2]
[347220680,1735589438039,-2500.0,0.00012298,2]
[347220681,1735589438048,-2855921.51493247,0.000125,2]
[347220682,1735589438058,-25849.87383895,0.000125,2]
[347220683,1735589438067,-287314.95466478,0.000125,2]
[347220684,1735589438078,-252.90102083,0.000125,2]
[347220685,1735589438144,-12721.78810053,0.000125,2]
[347220686,1735589438156,-303.64,0.000125,2]
[347220687,1735589438198,-1304.0305234,0.000125,2]
[347220688,1735589438304,-10051.6969912,0.000125,2]
[347220768,1735589440078,-2143.35793935,0.000125,2]
[347220769,1735589440091,-4939.77375769,0.000125,2]
[347220770,1735589440205,-377.908,0.000125,2]
[347220771,1735589440259,-340.68000001,0.000125,2]
[347220772,1735589440294,-33306.3600903,0.000125,2]
[347220773,1735589440307,-9439.61,0.000125,2]
[347220774,1735589440346,-1736.2500075,0.000125,2]
[347220775,1735589440359,-3800.0,0.000125,2]
[347220776,1735589440370,-9998.7048,0.000125,2]
[347220777,1735589440400,-2242777.05723576,0.000125,2]
[347220778,1735589440455,-7855.35575124,0.000125,2]
[347220845,1735589443067,-388.5620595,0.000125,2]
[347220846,1735589443121,-2100.83813431,0.000125,2]
[347220847,1735589443332,-4843.8,0.000125,2]
[347221128,1735589446100,-500.0,0.000125,2]
[347221131,1735589446112,-1269.26404567,0.000125,2]
[347221136,1735589446155,-65426.83354882,0.000125,2]
[347221149,1735589446262,-76454.20718732,0.000125,2]
[347221155,1735589446316,-137754.71922557,0.000125,2]
[347221157,1735589446328,-9706.4,0.000125,2]
[347221320,1735589755864,331.47,0.00010137,2]
[347221321,1735589796683,444.37591366,0.00011449,2]
[347221322,1735589919480,1741.87,0.00011477,2]
[347221323,1735589972784,177.47858504,0.00011455,2]
[347221324,1735589990630,1181.39,9.625e-05,2]
[347221325,1735590003362,250.0,0.00010922,2]
[347221327,1735590004498,4406.22581102,0.00010922,2]
[347221328,1735590004521,8320.09418898,0.00010922,2]
[347221329,1735590053486,1000.0,0.00010955,2]
[347221330,1735590062593,679.90581102,0.00010969,2]
[347221331,1735590062616,7599.55418898,0.00010969,2]
[347221332,1735590071849,164.1,0.00011477,2]
[347221333,1735590164747,1259.24,0.00010965,2]
[347221334,1735590192345,260.84,0.00010965,2]
[347221335,1735590263398,716.26581102,0.00011048,2]
[347221336,1735590263418,177.16418898,0.00011048,2]
[347221338,1735590308621,5968.55,0.00010915,2]
[347221339,1735590363441,2083.99529807,9.8e-05,2]
[347221340,1735590402418,400.0,0.00010986,2]
[347221341,1735590410396,166.6,0.00011238,2]
[347221343,1735590439165,-618.83,0.00011517,2]
[347221344,1735590439193,-151.0,0.00011542,2]
[347221345,1735590439231,-159.23,0.00011542,2]
[347221346,1735590439259,-159.23,0.00011547,2]
[347221347,1735590439287,-5540.0372036,0.00011549,2]
[347221348,1735590513033,200.0,0.00010987,2]
[347221352,1735590519454,200.0,0.00010987,2]
[347221354,1735590569046,-300.0,0.00011548,2]
[347221355,1735590569068,-503.69051295,0.00011549,2]
[347221356,1735590575886,-10000.0,0.00011549,2]
[347221357,1735590579174,532.05,0.00010992,2]
[347221358,1735590583333,-7856.27228345,0.00011549,2]
[347221359,1735590583355,-159.23,0.00011551,2]
[347221360,1735590583375,-970.39,0.00011554,2]
[347221361,1735590583396,-159.23,0.00011555,2]
[347221362,1735590583417,-159.23,0.00011559,2]
[347221363,1735590583441,-159.23,0.00011563,2]
[347221364,1735590583462,-4.36771655,0.00011567,2]
[347221365,1735590590724,-154.86228345,0.00011567,2]
[347221366,1735590590747,-159.23,0.00011571,2]
[347221367,1735590590768,-159.23,0.00011575,2]
[347221368,1735590590788,-274.72,0.00011579,2]
[347221369,1735590590808,-159.23,0.00011579,2]
[347221370,1735590590828,-159.23,0.00011584,2]
[347221371,1735590590850,-159.23,0.00011588,2]
[347221372,1735590590871,-159.23,0.00011592,2]
[347221373,1735590590892,-159.23,0.00011596,2]
[347221374,1735590590913,-250.0,0.00011597,2]
[347221375,1735590590935,-159.23,0.000116,2]
[347221376,1735590603940,250.0,0.00011555,2]
[347221390,1735590632581,-1500.0,0.00011744,2]
[347221391,1735590632591,-61.440015,0.00011744,2]
[347221392,1735590632603,-441.349985,0.00011744,2]
[347221393,1735590632613,-491.7,0.00011744,2]
[347221394,1735590632622,-1204.41,0.00011766,2]
[347221395,1735590632631,-663.516,0.0001188,2]
[347221396,1735590632641,-1181.39,0.00011889,2]
[347221397,1735590632650,-954.295,0.000119,2]
[347221398,1735590632662,-5742.95830627,0.000119,2]
[347221399,1735590632671,-5583.54158817,0.00011956,2]
[347221400,1735590632680,-502.0,0.00011973,2]
[347221401,1735590632689,-450.0,0.00012,2]
[347221402,1735590632699,-496.61,0.00012191,2]
[347221403,1735590632710,-1071.77277369,0.0001225,2]
[347221404,1735590632719,-1069.72707292,0.0001225,2]
[347221405,1735590632729,-505.76,0.0001225,2]
[347221406,1735590632740,-504.84,0.0001225,2]
[347221407,1735590632750,-502.29,0.0001225,2]
[347221408,1735590632759,-491.79,0.0001225,2]
[347221409,1735590632768,-150.0,0.000123,2]
[347221410,1735590632777,-150.0,0.000123,2]
[347221411,1735590632787,-631.03,0.000123,2]
[347221412,1735590632797,-150.0,0.000123,2]
[347221413,1735590632806,-150.5,0.000123,2]
[347221414,1735590632815,-436.69,0.000123,2]
[347221415,1735590632825,-150.0,0.000123,2]
[347221416,1735590632836,-150.0,0.000123,2]
[347221417,1735590632845,-150.0,0.000123,2]
[347221418,1735590632854,-436.08,0.000123,2]
[347221419,1735590632864,-150.0,0.000123,2]
[347221420,1735590632873,-150.0,0.000123,2]
[347221421,1735590632882,-150.0,0.000123,2]
[347221422,1735590632892,-978.41,0.000123,2]
[347221423,1735590632900,-150.0,0.000123,2]
[347221424,1735590632910,-150.0,0.000123,2]
[347221425,1735590632920,-300.0,0.000123,2]
[347221426,1735590632929,-978.41,0.000123,2]
[347221427,1735590632938,-150.0,0.000123,2]
[347221428,1735590632947,-978.41,0.000123,2]
[347221429,1735590632957,-978.41,0.000123,2]
[347221430,1735590632966,-1000.0,0.00012325,2]
[347221431,1735590632975,-532.05,0.00012366,2]
[347221432,1735590632984,-2259.443,0.000124,2]
[347221433,1735590632994,-171.752,0.000124,2]
[347221434,1735590633002,-248.42984943,0.000124,2]
[347221435,1735590633012,-500.0,0.000124,2]
[347221436,1735590633021,-500.0,0.000124,2]
[347221437,1735590633030,-200.0,0.000124,2]
[347221438,1735590633040,-750.98881772,0.000124,2]
[347221439,1735590633049,-151.2426981,0.000124,2]
[347221440,1735590633059,-978.41,0.000124,2]
[347221441,1735590633068,-150.0,0.00012406,2]
[347221442,1735590633077,-500.0,0.00012473,2]
[347221443,1735590633086,-500.0,0.00012473,2]
[347221444,1735590633096,-5632.80243426,0.0001248,2]
[347221445,1735590633133,-112413.13843406,0.0001248,2]
[347221446,1735590633143,-110945.24427175,0.0001249,2]
[347221447,1735590633152,-346374.87250461,0.000125,2]
[347221448,1735590633181,-1470.9993,0.000125,2]
[347221449,1735590633192,-4968.06800169,0.000125,2]
[347221450,1735590633203,-112398.80133073,0.000125,2]
[347221451,1735590635243,-3948.47980032,0.000125,2]
[347221452,1735590635254,-4895.11235169,0.000125,2]
[347221453,1735590635265,-2436.88,0.000125,2]
[347221454,1735590635322,-21457.4763823,0.000125,2]
[347221455,1735590635331,-12971.35867371,0.000125,2]
[347221456,1735590635342,-315.56542626,0.000125,2]
[347221457,1735590635380,-443.74562831,0.000125,2]
[347221458,1735590635391,-486.87103,0.000125,2]
[347221745,1735590638205,-911.25,0.000124,2]
[347221747,1735590638217,-604.55049984,0.000124,2]
[347221749,1735590638226,-1172.0,0.00012406,2]
[347221751,1735590638240,-50.91182136,0.000125,2]
[347221754,1735590638317,-3168819.4361304,0.000125,2]
[347221755,1735590638328,-686.03253807,0.000125,2]
[347221761,1735590638375,-47616.19857848,0.000125,2]
[347221763,1735590638386,-2238.99168339,0.000125,2]
[347221765,1735590638397,-201806.69024681,0.000125,2]
[347221770,1735590638433,-2810.81315183,0.000125,2]
[347221772,1735590638444,-4975.51485734,0.000125,2]
[347221774,1735590638455,-809.98594867,0.000125,2]
[347221777,1735590638466,-2715.84665235,0.000125,2]
[347221781,1735590638503,-24977.14541383,0.000125,2]
[347221783,1735590638515,-665.17985081,0.000125,2]
[347221786,1735590638525,-274.176,0.000125,2]
[347221947,1735590640238,-491.75,0.00011744,2]
[347221949,1735590640248,-4253.15,0.000125,2]
[347221954,1735590640292,-350.79000003,0.000125,2]
[347221956,1735590640303,-11433.36508019,0.000125,2]
[347221961,1735590640354,-475.51,0.000125,2]
[347221962,1735590640368,-260983.00555835,0.000125,2]
[347221964,1735590640464,-26786.45,0.000125,2]
[347221972,1735590640532,-439.853,0.000125,2]
[347221975,1735590640543,-285.123,0.000125,2]
[347221981,1735590640592,-1420.16511341,0.000125,2]
[347221983,1735590640603,-513.25999999,0.000125,2]
[347222268,1735590643286,-316.40573477,0.00012406,2]
[347222270,1735590643298,-1696.59426523,0.00012406,2]
[347222272,1735590643308,-20078.40573477,0.000125,2]
[347222274,1735590643553,-3189.506688,0.000125,2]
[347222275,1735590643564,-3516.21022,0.000125,2]
[347222287,1735590646312,-767.342793,0.000125,2]
[347222288,1735590646372,-855.95964949,0.000125,2]
[347222289,1735590646440,-15727.32130979,0.000125,2]
[347222290,1735590646451,-376.75212113,0.000125,2]
[347222291,1735590646550,-230393.38171953,0.000125,2]
[347222292,1735590646560,-495988.58334697,0.000125,2]
[347222293,1735590646572,-330.8573,0.000125,2]
[347222298,1735590762834,156.67,0.00010137,2]
[347222299,1735590862507,1115.21,9.646e-05,2]
[347222300,1735590965775,6524.69771655,0.00010885,2]
[347222301,1735590965797,10000.0,0.00010885,2]
[347222302,1735590965819,10000.0,0.00010885,2]
[347222303,1735590965841,10000.0,0.00010885,2]
[347222304,1735590965863,10000.0,0.00010885,2]
[347222305,1735590965884,10000.0,0.00010885,2]
[347222306,1735590965904,10000.0,0.00010885,2]
[347222307,1735590965925,10000.0,0.00010885,2]
[347222308,1735590965951,20058.85228345,0.00010885,2]
[347222309,1735590989264,924.1,0.00010873,2]
[347222310,1735590996657,1000.0,0.00010864,2]
[347222311,1735591172142,1710.53,0.00010876,2]
[347222312,1735591399249,400.0,0.00010986,2]
[347222313,1735591411729,200.0,0.00010922,2]
[347222314,1735591459643,197.54,0.00010893,2]
[347222315,1735591475752,250.0,0.00010893,2]
[347222316,1735591509807,3916.85,0.00010905,2]
[347222317,1735591535440,1041.18,0.00010888,2]
[347222318,1735591629353,-150.0,0.00011479,2]
[347222319,1735591629375,-774.63,0.0001148,2]
[347222320,1735591629396,-774.63,0.00011483,2]
[347222321,1735591629419,-80.72473032,0.00011486,2]
[347222322,1735591634387,1671.21,0.00010938,2]
[347222323,1735591662054,250.0,0.00010938,2]
[347222324,1735591681196,181.09,0.00010137,2]
[347222325,1735591733658,1121.52,9.046e-05,2]
[347222328,1735591816496,1422.66034708,0.00010948,2]
[347222329,1735591816520,22467.33965292,0.00010948,2]
[347222336,1735591831686,-1121.52,0.0001131,2]
[347222337,1735591831695,-693.90526968,0.00011486,2]
[347222338,1735591831704,-774.63,0.00011489,2]
[347222339,1735591831713,-774.63,0.00011492,2]
[347222340,1735591831722,-531.21347731,0.00011495,2]
[347222341,1735591831770,-243.41652269,0.00011495,2]
[347222342,1735591831779,-774.63,0.00011498,2]
[347222343,1735591831788,-774.63,0.00011501,2]
[347222344,1735591831797,-774.63,0.00011504,2]
[347222345,1735591831807,-302.94240406,0.00011507,2]
[347222346,1735591831818,-471.68759594,0.00011507,2]
[347222347,1735591831828,-774.63,0.0001151,2]
[347222348,1735591831837,-774.63,0.00011513,2]
[347222349,1735591831847,-774.63,0.00011516,2]
[347222350,1735591831856,-250.0,0.00011517,2]
[347222351,1735591831865,-774.63,0.00011519,2]